[Event "34th MPL National U14-ch 2022"]
[Site "Ahmedabad"]
[Date "2022.05.09"]
[Round "2.6"]
[White "Shaik Sumer Arsh"]
[Black "Vibhakar Venkatakrishnan"]
[Result "1-0"]
[ECO "E38"]
[WhiteElo "1999"]
[BlackElo "1422"]
[Annotator "TA"]
[PlyCount "69"]
[EventDate "2022.05.09"]
[EventType "swiss"]
[EventCountry "IND"]
[SourceTitle "playchess.com"]
[Source "ChessBase"]
[SourceQuality "1"]
[TimeControl "5400+30"]

{[%evp 14,69,41,35,31,31,58,-29,-25,0,57,51,44,45,107,102,107,97,136,86,131,34,23,32,129,72,90,-16,-8,-8,-10,-113,-107,-117,-60,-137,0,0,12,4,81,95,87,67,106,110,122,90,91,89,91,91,233,162,513,497,1258,1164]} 1. d4 {[%emt 0:00:17]} Nf6 2. c4 {[%emt 0:00:07]} e6 {[%emt 0:00:59]} 3. Nc3 {[%emt 0:00:13]} Bb4 {[%emt 0:00:07]} 4. Qc2 {[%emt 0:00:12]} c5 {[%emt 0:00:28]} 5. dxc5 {[%emt 0:00:09]} Nc6 {[%emt 0:02:55]} 6. Nf3 {[%emt 0:03:56]} Bxc5 {[%emt 0:07:31]} 7. Bg5 {[%emt 0:02:21]} h6 {[%emt 0:08:20]} 8. Bh4 {[%emt 0:01:54]} b6 {[%emt 0:11:12] E38: Nimzo-Indian: Classical: 4...c5.} 9. Rd1 {[%emt 0:01:25]} Bb7 {[%emt 0:03:24]} 10. e4 {[%emt 0:00:45]} (10. e3 $14) 10... g5 $11 {[%emt 0:03:19] Black has an edge.} 11. Bg3 {[%emt 0:01:26] [#]} g4 $146 {[%emt 0:07:06]} (11... Nh5 $11) ({Predecessor:} 11... Nh5 12. Bd6 Bxd6 13. Rxd6 g4 14. Nd2 Rc8 15. Qd1 Rg8 16. Rd3 Ne5 17. Re3 a6 {0-1 (41) Akesson,R (2449)-Miezis,N (2527) Gausdal 2006}) 12. Ne5 {[%emt 1:23:45]} Nd4 {[%emt 0:02:56]} 13. Qb1 {[%emt 0:00:00]} d6 {[%emt 0:07:57] [#]} (13... Nh5 $14) 14. Nd3 $1 $16 {[%emt 0:00:00]} a5 {[%emt 0:41:16]} 15. Bh4 {[%emt 0:00:00]} Rg8 {[%emt 0:00:00]} 16. Qc1 {[%emt 0:00:00]} (16. Nxc5 $142 bxc5 17. Bd3) 16... Qe7 {[%emt 0:00:00]} 17. Nf4 {[%emt 0:00:00]} (17. Qxh6 Rg6 18. Qc1 (18. Qh8+ Kd7 $11) 18... Qf8 $14) (17. Nxc5 $16 bxc5 18. Bd3 (18. Qxh6 Rg6 $14)) 17... Rg5 $1 $14 {[%emt 0:00:00]} 18. Bd3 {[%emt 0:00:00]} Re5 {[%emt 0:00:00]} (18... d5 $1 $14) 19. Kf1 {[%emt 0:00:00]} (19. O-O $142) 19... O-O-O $16 {[%emt 0:00:00]} 20. Nfe2 {[%emt 0:00:00]} (20. a3 $16) 20... Rh5 {[%emt 0:00:00]} 21. Bg3 $1 {[%emt 0:00:00]} Nxe2 {[%emt 0:00:00]} 22. Bxe2 {[%emt 0:00:00]} (22. Kxe2 $11 Kb8 23. Bc2) 22... Bxe4 $17 {[%emt 0:00:00]} ({Inferior is} 22... Nxe4 23. Nxe4 Bxe4 24. Bxg4) 23. Na4 {[%emt 0:00:00]} Rf5 {[%emt 0:00:00]} (23... Rg8 $17 24. Nxc5 dxc5) 24. a3 {[%emt 0:00:00]} ({White should try} 24. Nxc5 $15 dxc5 25. Kg1) 24... Nh5 {[%emt 0:00:00]} (24... Qc7 25. Nxc5 Qxc5) (24... Bc6 $17 25. Nxc5 dxc5) 25. Nxc5 $11 {[%emt 0:00:00]} bxc5 {[%emt 0:00:00]} 26. Bxg4 {[%emt 0:00:00]} Nxg3+ {[%emt 0:00:00]} (26... Qb7 $11 {keeps the balance.} 27. Rg1 Nxg3+ 28. hxg3 Rg5) 27. hxg3 $16 {[%emt 0:00:00]} Rg5 {[%emt 0:00:00]} 28. Bf3 {[%emt 0:00:00]} Bxf3 {[%emt 0:00:00]} 29. gxf3 {[%emt 0:00:00]} Qb7 {[%emt 0:00:01][%cal Og5g3] [#] Threatens to win with ...Rxg3!} 30. Qc3 {[%emt 0:00:21]} (30. Rxh6 $6 Qxf3 31. Qxg5 Qxd1+ 32. Kg2 Qd4 $11) 30... Rf5 {[%emt 0:00:19]} 31. Rd3 {[%emt 0:01:34]} ({Of course not} 31. Rxh6 $6 Rxf3 32. Qxa5 Rxg3 33. fxg3 Qf3+ 34. Ke1 Qe3+ 35. Kf1 Qf3+ 36. Ke1 Qe3+ 37. Kf1 Qf3+ $11) 31... h5 {[%emt 0:00:49]} 32. Kg2 {[%emt 0:00:22]} e5 {[%emt 0:00:57]} (32... Qb6) (32... Qb6 $16 {might work better.}) 33. Rh4 {[%emt 0:01:48]} ({But not} 33. Qxa5 $6 e4 34. Re3 Rxf3 $16) 33... Rg8 $2 {[%emt 0:01:01]} (33... a4 34. Qc2 Qa8) (33... a4 {is more resistant.} 34. Rd5 Qb3) 34. Rxd6 $18 {[%emt 0:00:41]} Rg4 {[%emt 0:00:28]} (34... Rd8 $142) 35. Qd3 {[%emt 0:00:03] Weighted Error Value: White=0.34/Black=0.44} 1-0

[Event "34th MPL National U14-ch 2022"]
[Site "Ahmedabad"]
[Date "2022.05.09"]
[Round "2.7"]
[White "Ashvath Mittal"]
[Black "Sahib Singh"]
[Result "0-1"]
[ECO "C11"]
[WhiteElo "1419"]
[BlackElo "1991"]
[Annotator "TA"]
[PlyCount "58"]
[EventDate "2022.05.09"]
[EventType "swiss"]
[EventCountry "IND"]
[SourceTitle "playchess.com"]
[Source "ChessBase"]
[SourceQuality "1"]
[TimeControl "5400+30"]

{[%evp 15,58,0,3,-124,13,-48,22,-33,-36,-35,-43,-60,-50,-70,-68,-57,-35,-47,-48,-108,-6,-180,-185,-245,-251,-270,-263,-295,-277,-283,-280,-475,-471,-460,-462,-453,-462,-493,-504,-498,-493,-619,-644,-668,-660]} 1. e4 {[%emt 0:00:17]} e6 {[%emt 0:00:08]} 2. d4 {[%emt 0:00:07]} d5 {[%emt 0:00:05]} 3. Nc3 {[%emt 0:00:03]} Nf6 {[%emt 0:00:06]} 4. e5 {[%emt 0:00:03]} Nfd7 {[%emt 0:00:07]} 5. f4 {[%emt 0:00:06]} c5 {[%emt 0:00:05]} 6. Nf3 {[%emt 0:00:06]} Nc6 {[%emt 0:00:06]} 7. Be3 {[%emt 0:00:05]} Be7 {[%emt 0:01:23]} 8. Qd2 {[%emt 0:00:47]} O-O {[%emt 0:00:32]} 9. O-O-O {[%emt 0:00:35] C11: French: Classical System: 4 e5 and 4 Bg5 dxe4.} (9. Be2 $11 {keeps the balance.}) 9... Qa5 {[%emt 0:00:13]} ({Better is} 9... c4 $17 {[%cal Ob7b5] Threatens to win with ...b5!} 10. f5 b5) 10. Kb1 {[%emt 0:02:33]} (10. dxc5 $1 $11 Bxc5 11. a3) 10... Rb8 {[%emt 0:12:17] [#]} ({Black should try} 10... c4 $1 $15) 11. Nb5 $146 {[%emt 0:10:56]} (11. dxc5 $11 Bxc5 12. Bxc5 Nxc5 13. Qe3) ({Predecessor:} 11. f5 cxd4 12. Bxd4 exf5 13. Nb5 Qxd2 14. Rxd2 a6 15. Nd6 Nxd4 16. Rxd4 Bxd6 17. exd6 {0-1 (66) Przybylski,W (2321)-Isha,S (2276) Chess.com INT 2020}) 11... Qxd2 $15 {[%emt 0:00:40]} (11... Nb4 12. a3 c4 13. Nd6 (13. axb4 Qxb5 14. Qc3 Bxb4 $17) 13... Bxd6 14. exd6 $11) 12. Rxd2 {[%emt 0:00:55]} a6 {[%emt 0:00:34]} 13. Nd6 {[%emt 0:04:22]} Bxd6 {[%emt 0:00:28]} 14. exd6 {[%emt 0:00:03]} c4 {[%emt 0:00:13]} 15. Ne5 {[%emt 0:02:25]} Na7 {[%emt 0:06:41]} 16. b3 {[%emt 0:04:12]} b5 {[%emt 0:00:16]} 17. f5 {[%emt 0:06:33]} (17. g4 $15) 17... Nf6 {[%emt 0:07:22]} (17... exf5 $17 {Hoping for ...Nf6.} 18. g4 fxg4) 18. Kc1 $2 {[%emt 0:04:30] Now White is beyond hope.} (18. g4 $1 $11 {and White stays safe.}) 18... exf5 $19 {[%emt 0:07:43]} 19. Bf4 {[%emt 0:01:35]} (19. d7 $142 Bxd7 20. Bg5) 19... Ne4 {[%emt 0:00:38][%csl LRd2,LRd6]} 20. d7 {[%emt 0:02:08] [#]} Bb7 {[%emt 0:00:06]} 21. Re2 {[%emt 0:00:29]} g5 {[%emt 0:00:17]} 22. Bd2 {[%emt 0:01:10]} f6 {[%emt 0:00:52]} 23. Bb4 {[%emt 0:00:54]} (23. Rxe4 dxe4 24. Nxc4) 23... fxe5 {[%emt 0:00:33] Black is clearly winning.} ({Avoid the trap} 23... Rfd8 $2 24. Nf3 $19) 24. Bxf8 {[%emt 0:00:04]} Kxf8 {[%emt 0:00:07]} ({Not} 24... Rxf8 $2 25. dxe5 Kf7 26. g4 $19) 25. dxe5 {[%emt 0:00:07]} Nc6 {[%emt 0:00:13]} 26. bxc4 {[%emt 0:00:10]} bxc4 {[%emt 0:00:07]} ({Don't go for} 26... Nxe5 $2 27. cxb5 axb5 28. Re3 $19) 27. e6 {[%emt 0:00:16]} Ke7 {[%emt 0:00:07]} 28. g4 {[%emt 0:00:41]} f4 {[%emt 0:00:19]} 29. h4 {[%emt 0:00:12]} Ng3 {[%emt 0:00:06] Weighted Error Value: White=0.59/Black=0.26 (precise)} 0-1

[Event "34th MPL National U14-ch 2022"]
[Site "Ahmedabad"]
[Date "2022.05.09"]
[Round "2.8"]
[White "Ankit Ray"]
[Black "Shaun Deon Sequeira"]
[Result "1-0"]
[ECO "A49"]
[WhiteElo "1932"]
[BlackElo "1418"]
[Annotator "TA"]
[PlyCount "139"]
[EventDate "2022.05.09"]
[EventType "swiss"]
[EventCountry "IND"]
[SourceTitle "playchess.com"]
[Source "ChessBase"]
[SourceQuality "1"]
[TimeControl "5400+30"]

{[%evp 10,139,21,14,33,24,31,20,21,20,24,23,46,36,39,20,27,16,31,39,79,79,79,79,79,79,71,70,75,61,121,116,120,107,145,114,99,98,137,119,221,218,294,263,234,166,166,166,166,166,174,174,217,168,168,166,167,165,166,158,158,128,157,149,229,184,483,443,455,412,379,379,772,423,424,424,415,286,308,302,447,419,399,289,262,258,857,823,854,829,803,769,791,712,717,717,29974,29975,29975,29974,29975,29976,29976,29977,29977,29978,29981,29982,29982,29983,29986,29987,29988,29989,29989,29990,29990,29991,29991,29991,29992,29993,29993,29994,29994,29995,29996,29996,29996,29996,29996,29996]} 1. d4 {[%emt 0:00:04]} Nf6 {[%emt 0:00:07]} 2. Nf3 {[%emt 0:01:03]} g6 {[%emt 0:00:06]} 3. g3 {[%emt 0:00:37]} Bg7 {[%emt 0:00:20]} 4. Bg2 {[%emt 0:00:53]} O-O {[%emt 0:00:09]} 5. O-O {[%emt 0:02:58]} d6 {[%emt 0:00:05]} 6. b3 {[%emt 0:01:42]} d5 {[%emt 0:07:06][%cal Oc7c5] A49: 1 d4 Nf6 2 Nf3 g6 3 g3: Anti-King's Indian systems.} 7. Bb2 {[%emt 0:01:49] [#]} b6 $146 {[%emt 0:01:51]} ({Predecessor:} 7... c6 8. c4 a5 9. Nc3 Bf5 10. Nd2 h5 11. Re1 h4 12. Rc1 h3 13. Bh1 Bh6 {1-0 (61) Yakubboev,N (2598)-Lagno,K (2559) Chess.com INT 2021}) 8. c4 {[%emt 0:01:53]} e6 {[%emt 0:01:17] The position is equal.} 9. Ne5 {[%emt 0:01:44]} Bb7 {[%emt 0:06:09]} 10. Qc2 {[%emt 0:00:10]} Nbd7 {[%emt 0:02:08]} 11. Rd1 {[%emt 0:00:52]} c6 {[%emt 0:27:25]} 12. Nxd7 {[%emt 0:03:13]} (12. f4 {looks sharper.} Ne4 13. e3 f5 14. Nc3) 12... Qxd7 {[%emt 0:00:30]} 13. Nc3 {[%emt 0:00:07]} b5 {[%emt 0:08:00]} 14. e4 {[%emt 0:03:05]} Rfd8 {[%emt 0:07:35]} 15. e5 {[%emt 0:02:18]} Ne8 {[%emt 0:00:35]} 16. c5 {[%emt 0:00:12] White is more active.} a5 {[%emt 0:01:28]} 17. h4 {[%emt 0:00:33]} Qc7 {[%emt 0:05:04]} 18. Ne2 {[%emt 0:01:13][%cal Bc3e2,Be2f4,Bf4d3,Bd3b4][%mdl 32]} b4 {[%emt 0:07:21]} 19. h5 {[%emt 0:00:24]} a4 {[%emt 0:00:19]} (19... Bh6 $14) 20. hxg6 $16 {[%emt 0:05:07]} hxg6 {[%emt 0:00:07]} 21. Qd2 {[%emt 0:00:07]} (21. bxa4 Qa5) 21... Qa5 {[%emt 0:01:52]} 22. Qg5 {[%emt 0:00:27]} Qc7 {[%emt 0:02:41]} 23. Nf4 {[%emt 0:00:59]} axb3 {[%emt 0:03:44]} 24. axb3 {[%emt 0:00:27]} Rxa1 {[%emt 0:00:12]} (24... Ba6 $16 {was necessary.} 25. Bc1 Bf8) 25. Rxa1 $18 {[%emt 0:00:06]} Ra8 {[%emt 0:00:05]} 26. Rxa8 {[%emt 0:00:20]} Bxa8 {[%emt 0:00:06]} 27. Nd3 {[%emt 0:00:08]} Qb8 {[%emt 0:01:44]} 28. Qd2 {[%emt 0:00:08]} Nc7 {[%emt 0:02:24]} 29. Nxb4 {[%emt 0:01:10]} Nb5 {[%emt 0:00:25]} 30. Bf1 {[%emt 0:00:20]} Bf8 {[%emt 0:00:58]} 31. Nc2 {[%emt 0:02:23]} Nc7 {[%emt 0:01:21]} 32. Qc3 {[%emt 0:05:55]} Bh6 {[%emt 0:01:40]} 33. f4 {[%emt 0:08:04]} Kf8 {[%emt 0:01:28]} 34. Kf2 {[%emt 0:01:35]} Ke7 {[%emt 0:00:12]} 35. Na3 {[%emt 0:04:43]} Kd7 {[%emt 0:01:22]} 36. b4 {[%emt 0:01:15]} Nb5 {[%emt 0:01:14]} (36... g5 $16 {was called for.}) 37. Qb3 {[%emt 0:00:17]} g5 $2 {[%emt 0:02:25] [#]} (37... Nc7 {might work better.} 38. Bc3 (38. b5 cxb5 39. Bc3 Bg7 $18) 38... g5) 38. Nxb5 {[%emt 0:06:22]} cxb5 {[%emt 0:00:07]} 39. fxg5 {[%emt 0:00:05]} Bxg5 {[%emt 0:00:05]} 40. Qf3 {[%emt 0:00:04]} Ke7 {[%emt 0:02:55]} (40... f5 41. exf6 Bc6) 41. Qh5 {[%emt 0:00:29]} Bd2 {[%emt 0:00:33]} 42. Qh4+ {[%emt 0:00:06]} Kd7 {[%emt 0:00:08]} 43. Qf6 {[%emt 0:00:05]} Qf8 {[%emt 0:00:54]} 44. Bxb5+ {[%emt 0:00:10]} Kc7 {[%emt 0:00:04]} (44... Bc6 $142) 45. Be2 {[%emt 0:04:13]} Bxb4 {[%emt 0:00:24]} 46. Bh5 {[%emt 0:00:02]} Bxc5 {[%emt 0:01:21]} 47. Qxf7+ {[%emt 0:00:09]} ({Resist} 47. dxc5 $6 Qxc5+ 48. Kf3 Qb4 49. Qxf7+ Kb6 50. Qxe6+ Bc6 $18) 47... Qxf7+ $2 {[%emt 0:00:15]} (47... Be7 48. Qxf8 Bxf8) 48. Bxf7 {[%emt 0:00:05][%mdl 4096] Endgame KBB-KBB} Be7 {[%emt 0:00:08]} 49. Bxe6 {[%emt 0:00:04]} Bg5 {[%emt 0:00:09]} 50. Ke2 {[%emt 0:00:14]} Kd8 {[%emt 0:00:16]} 51. Bc3 {[%emt 0:00:26] [#] Black must now prevent Bd2.} Ke7 {[%emt 0:00:18]} 52. Bf5 {[%emt 0:00:20] Threatening mate with Bd2.} Bc6 {[%emt 0:00:29]} 53. Bd2 {[%emt 0:01:25] White mates.} Bb5+ {[%emt 0:00:16]} 54. Bd3 {[%emt 0:00:27]} Bxd2 {[%emt 0:00:06]} 55. Kxd2 {[%emt 0:00:04] KB-KB} Bd7 {[%emt 0:00:08]} 56. Ke3 {[%emt 0:00:28]} Kf7 {[%emt 0:00:08]} 57. Kf4 {[%emt 0:00:04]} Kg7 {[%emt 0:00:04]} 58. g4 {[%emt 0:00:17]} Be6 {[%emt 0:00:06]} 59. Bf5 {[%emt 0:00:05]} Bg8 {[%emt 0:00:03]} 60. e6 {[%emt 0:00:14]} Kf6 {[%emt 0:00:23]} 61. g5+ {[%emt 0:00:12]} Ke7 {[%emt 0:00:27]} 62. Ke5 {[%emt 0:00:11]} Kf8 {[%emt 0:00:10]} 63. Kf6 {[%emt 0:00:12]} Bxe6 {[%emt 0:00:13]} 64. Bxe6 {[%emt 0:00:04] KB-KP} Ke8 {[%emt 0:00:12]} 65. g6 {[%emt 0:00:03]} Kd8 {[%emt 0:00:04]} 66. g7 {[%emt 0:00:03]} Kc7 {[%emt 0:00:04]} 67. g8=Q {[%emt 0:00:08]} Kb6 {[%emt 0:00:04]} 68. Qc8 {[%emt 0:00:06]} Kb5 {[%emt 0:00:04]} 69. Bd7+ {[%emt 0:00:09]} Kb4 {[%emt 0:00:04]} 70. Ke5 {[%emt 0:00:07] Weighted Error Value: White=0.21 (precise) /Black=0.39} 1-0

[Event "34th MPL National U14-ch 2022"]
[Site "Ahmedabad"]
[Date "2022.05.09"]
[Round "2.9"]
[White "Atharva Kale"]
[Black "Bharadia Yash"]
[Result "0-1"]
[ECO "B90"]
[WhiteElo "1413"]
[BlackElo "1924"]
[Annotator "TA"]
[PlyCount "73"]
[EventDate "2022.05.09"]
[EventType "swiss"]
[EventCountry "IND"]
[SourceTitle "playchess.com"]
[Source "ChessBase"]
[SourceQuality "1"]
[TimeControl "5400+30"]

{[%evp 13,73,4,10,8,47,46,62,-5,0,-13,0,0,0,0,0,-17,10,12,89,19,43,27,47,0,0,-12,0,-58,0,-81,-70,-81,-75,-78,-51,-53,-38,-362,-317,-348,-349,-327,-253,-408,-419,-413,-403,-530,-519,-509,-504,-534,-543,-1328,-1260,-1864,-1836,-2360,-2430,-1647,-1460,-1571]} 1. e4 {[%emt 0:00:01]} c5 {[%emt 0:00:09]} 2. Nf3 {[%emt 0:00:02]} d6 {[%emt 0:00:12]} 3. d4 {[%emt 0:00:00]} cxd4 {[%emt 0:00:06]} 4. Nxd4 {[%emt 0:00:02]} Nf6 {[%emt 0:00:07]} 5. Nc3 {[%emt 0:00:02]} a6 {[%emt 0:00:05]} 6. h3 {[%emt 0:00:08]} e5 {[%emt 0:00:37]} 7. Nde2 {[%emt 0:00:01]} b5 {[%emt 0:00:23]} 8. Ng3 {[%emt 0:00:39] B90: Sicilian Najdorf: Unusual White 6th moves, 6 Be3 Ng4 and 6 Be3 e5.} Bb7 {[%emt 0:00:23]} 9. Bg5 {[%emt 0:07:07]} Nbd7 {[%emt 0:12:24]} 10. Be2 {[%emt 0:06:24] [#]} (10. Nh5 $1 $14) 10... h6 $146 {[%emt 0:03:44]} ({Predecessor:} 10... Qa5 11. a3 h6 12. Bd2 Qc7 13. O-O Nb6 14. Bf3 Nc4 15. Bc1 Be7 16. Re1 O-O {½-½ (57) Maghsoodloo,P (2671)-Sarana,A (2636) Chess.com INT 2019}) 11. Be3 {[%emt 0:00:37]} b4 {[%emt 0:00:43]} 12. Nd5 {[%emt 0:00:31]} Nxd5 {[%emt 1:17:37]} 13. exd5 {[%emt 0:00:03]} g6 {[%emt 0:00:00]} 14. O-O {[%emt 0:07:56]} Bg7 {[%emt 0:00:00]} 15. Qd2 {[%emt 0:10:54]} a5 {[%emt 0:00:00]} (15... Qh4 $11) 16. c3 {[%emt 0:07:45]} ({Better is} 16. Ne4 $16 Qe7 17. c4) 16... bxc3 {[%emt 0:00:00]} 17. bxc3 {[%emt 0:00:01]} f5 {[%emt 0:00:00] Against Ne4} 18. f4 {[%emt 0:01:20]} (18. Rab1 $14 Qc7 19. Bb5) 18... O-O {[%emt 0:00:00]} 19. Rab1 {[%emt 0:03:27]} Qc7 {[%emt 0:00:00]} 20. c4 {[%emt 0:05:37]} (20. Bb5 $11) 20... Kh7 {[%emt 0:00:00]} (20... exf4 $15 21. Rxf4 (21. Bxf4 Kh7 $11) 21... Ba6) 21. Rfc1 {[%emt 0:48:23]} (21. h4 $11 {keeps the balance.}) 21... exf4 $17 {[%emt 0:00:00]} 22. Bxf4 {[%emt 0:00:00]} Ba6 {[%emt 0:00:00] Inhibits Rb5.} 23. Be3 {[%emt 0:00:00]} Rae8 {[%emt 0:00:00][%cal Oe8e3]} 24. Bd3 {[%emt 0:00:00]} Nc5 {[%emt 0:00:00]} 25. Ne2 $2 {[%emt 0:00:00][%mdl 8192] White does not recover from this.} (25. Bxc5 $15 Qxc5+ 26. Kh1) 25... Nxd3 $19 {[%emt 0:00:00]} 26. Qxd3 {[%emt 0:00:00] [#]} Qe7 $1 {[%emt 0:00:00]} 27. Kf2 {[%emt 0:00:00]} Qh4+ {[%emt 0:00:00]} 28. Kg1 $2 {[%emt 0:00:00] [#]} (28. g3 {was forced.} Qxh3 29. Rh1) 28... Qe4 $1 {[%emt 0:00:00]} ({Worse is} 28... Re4 29. Bf2 Qg5 30. Nd4 Bxd4 31. Bxd4 $11) 29. Qxe4 {[%emt 0:00:00]} Rxe4 {[%emt 0:00:00]} 30. Nf4 {[%emt 0:00:00]} Rxe3 {[%emt 0:00:00] Black is clearly winning.} 31. Ne6 {[%emt 0:05:00]} Rc8 {[%emt 0:00:00]} 32. Rb6 {[%emt 0:00:00] [#]} Rxe6 $1 {[%emt 0:00:00]} 33. dxe6 {[%emt 0:00:00]} (33. Rxa6 Re2) 33... Bd4+ {[%emt 0:00:00]} 34. Kh1 {[%emt 0:00:00]} Bxb6 {[%emt 0:00:00]} 35. e7 {[%emt 0:00:00]} Re8 {[%emt 0:00:00]} 36. Re1 {[%emt 0:00:00]} Bxc4 {[%emt 0:00:00]} 37. Ra1 {[%emt 0:03:00] Weighted Error Value: White=0.93/Black=0.13 (very precise)} 0-1

[Event "34th MPL National U14-ch 2022"]
[Site "Ahmedabad"]
[Date "2022.05.09"]
[Round "2.10"]
[White "Chidvilash Sai Surapaneni"]
[Black "Nimay Agrawal"]
[Result "1/2-1/2"]
[ECO "C00"]
[WhiteElo "1912"]
[BlackElo "1396"]
[Annotator "TA"]
[PlyCount "61"]
[EventDate "2022.05.09"]
[EventType "swiss"]
[EventCountry "IND"]
[SourceTitle "playchess.com"]
[Source "ChessBase"]
[SourceQuality "1"]
[TimeControl "5400+30"]

{[%evp 9,61,20,29,29,37,38,29,0,0,12,52,7,26,15,22,17,27,34,29,1,13,3,18,15,20,4,30,20,32,31,29,28,28,-14,-14,-14,-16,-13,-13,-12,25,0,0,-22,-10,-28,0,0,0,0,0,-30,-20,-33]} 1. c4 {[%emt 0:00:05]} e6 {[%emt 0:00:10]} 2. e4 {[%emt 0:00:09]} d5 {[%emt 0:02:04]} 3. cxd5 {[%emt 0:00:07]} exd5 {[%emt 0:00:08]} 4. exd5 {[%emt 0:00:06]} Qxd5 {[%emt 0:00:57]} 5. Nc3 {[%emt 0:00:02]} Qd8 {[%emt 0:01:03]} 6. Bc4 {[%emt 0:00:09] C00: French: Unusual White 2nd moves.} Nf6 {[%emt 0:00:56]} 7. Nf3 {[%emt 0:00:03]} Bd6 {[%emt 0:00:52]} 8. O-O {[%emt 0:00:12] Strongly threatening Re1+. White has an edge.} O-O {[%emt 0:00:35]} 9. h3 {[%emt 0:00:05]} c6 {[%emt 0:01:08] [#]} 10. a4 $146 {[%emt 0:02:03]} ({Predecessor:} 10. a3 Nbd7 11. d4 Nb6 12. Bd3 h6 13. Bc2 Re8 14. Qd3 Nbd5 15. Nxd5 Nxd5 16. Qh7+ {1-0 (25) Cruz Pino,A (2087)-Medina Martin,A (1567) Gran Canaria 2016}) 10... Bf5 {[%emt 0:02:05]} 11. d4 {[%emt 0:01:17]} Nbd7 {[%emt 0:00:49][%cal Bb8d7,Bd7b6,Bb6d5][%mdl 32]} 12. Nh4 {[%emt 0:01:31]} Bg6 {[%emt 0:01:39]} 13. Nxg6 {[%emt 0:14:12]} hxg6 {[%emt 0:00:14]} 14. Qf3 {[%emt 0:15:18]} Nb6 {[%emt 0:06:31]} 15. Bb3 {[%emt 0:04:16]} Bc7 {[%emt 0:05:03]} 16. Rd1 {[%emt 0:10:06]} Nbd5 {[%emt 0:05:56]} 17. Bg5 {[%emt 0:00:48]} Qd6 {[%emt 0:02:06]} 18. g3 {[%emt 0:00:02]} Rae8 {[%emt 0:09:41]} 19. Rac1 {[%emt 0:09:52]} Nxc3 {[%emt 0:02:57]} 20. bxc3 {[%emt 0:03:02]} Ne4 {[%emt 0:01:05]} 21. Bf4 {[%emt 0:01:53] This bishop pair is nice.} Qf6 {[%emt 0:01:31]} 22. Kg2 {[%emt 0:02:23]} Bxf4 {[%emt 0:02:36]} 23. Qxf4 {[%emt 0:00:21]} Qxf4 {[%emt 0:02:06]} 24. gxf4 {[%emt 0:00:02]} Kh7 {[%emt 0:02:31]} 25. c4 {[%emt 0:00:09]} f5 {[%emt 0:01:11]} 26. Ba2 {[%emt 0:01:50]} Nf6 {[%emt 0:01:13]} 27. Kf3 {[%emt 0:01:41]} Rd8 {[%emt 0:03:52]} 28. d5 {[%emt 0:00:22]} cxd5 {[%emt 0:01:32]} 29. cxd5 {[%emt 0:00:01]} Rd7 {[%emt 0:00:24]} 30. Rd3 {[%emt 0:02:47]} Rfd8 {[%emt 0:00:17][%cal Rf6d5]} 31. Rcd1 {[%emt 0:01:22] Weighted Error Value: White=0.12 (very precise) /Black=0.08 (flawless)} 1/2-1/2